Cogmind - Beta 16 @@@ ROGUE MODE // 2025.11.01 @ 02:58:30 Player: daxter767676 Result: Destroyed by G-47 Trooper with Particle Gun Performance ------------- Evolutions (2) 1000 Regions Visited (5) 1000 Robots Destroyed (32) 160 Value Destroyed (1154) 1154 Prototype IDs (4) 80 Alien Tech Used (0) 0 Bonus (700) 700 TOTAL SCORE: 4094 Bonus ------- Entered Garrisons 200 Used RIF Installer 500 Cogmind --------- Core Integrity 0/550 Matter 300/300 Energy 160/160 System Corruption 0% Temperature Cool (9) Movement Walking (120) Location -8/Materials Parts ------- > --- POWER (1) -------- Light Nuclear Core > --- PROPULSION (4) --- Aluminum Leg Aluminum Leg Flight Unit Flight Unit > --- UTILITY (4) ------ Improved Terrain Scanner Relay Coupler [NC] (26) Relay Coupler [Grunt] (24) Relay Coupler [Brawler] (24) > --- WEAPON (2) ------- Axe > --- INVENTORY (5) ---- Disposable Heat Sink High-capacity Storage Unit Authchip [R/Combat] Rocket Launcher Proton Bomb Trap Peak State ------------ > --- POWER ------------ Light Deuterium Engine > --- PROPULSION ------- Improved Aluminum Leg Improved Aluminum Leg Improved Aluminum Leg Improved Aluminum Leg > --- UTILITY ---------- Heat Sink Disposable Heat Sink Core Shielding Light Armor Plating > --- WEAPON ----------- Pulse Rifle Precision Beam Rifle > --- INVENTORY -------- Nuclear Core High-capacity Storage Unit Improved Terrain Scanner Improved Terrain Scanner Rocket Launcher [Rating: 24] Favorites ----------- Power Nuclear Core Engine Light Ion Engine Power Core Nuclear Core Propulsion Improved Aluminum Leg Leg Improved Aluminum Leg Wheel Wheel Flight Unit Flight Unit Utility Disposable Heat Sink Device Disposable Heat Sink Storage Small Storage Unit Processor Machine Analyzer Hackware Relay Coupler [Brawler] Protection Core Shielding Weapon Great Maul Energy Gun Medium Laser Launcher Rocket Launcher Special Weapon Mining Laser Impact Weapon Great Maul Slashing Weapon Axe Build | -11 -10 -10 -8 -8 -8 ------- Run | Yrd Mat Sub Mat Gar Mat Slots Evolved 4 | . . . 4 . . Power . | . . . . . . Propulsion 2 | . . . 2 . . Utility 2 | . . . 2 . . Weapon . | . . . . . . Parts Attached 43 | 6 4 1 21 9 2 Power 6 | . 1 . 3 2 . Engine 3 | . 1 . 2 . . Core 3 | . . . 1 2 . Reactor . | . . . . . . Propulsion 16 | 3 2 . 7 4 . Treads . | . . . . . . Leg 7 | . . . 5 2 . Wheel 7 | 3 2 . 2 . . Hover . | . . . . . . Flight 2 | . . . . 2 . Utility 13 | 2 . 1 6 3 1 Device 6 | 2 . 1 2 . 1 Storage . | . . . . . . Processor 1 | . . . 1 . . Hackware 4 | . . . 1 3 . Protection 2 | . . . 2 . . Artifact . | . . . . . . Weapon 8 | 1 1 . 5 . 1 Energy Gun 4 | 1 . . 3 . . Energy Cannon . | . . . . . . Ballistic Gun . | . . . . . . Ballistic Cannon . | . . . . . . Launcher 1 | . . . 1 . . Special Weapon 1 | . 1 . . . . Impact Weapon 1 | . . . 1 . . Slashing Weapon 1 | . . . . . 1 Piercing Weapon . | . . . . . . Special Melee Weapon . | . . . . . . Unidentified Prototypes 1 | . . . 1 . . Parts Lost 25 | . 1 7 8 9 . Power 3 | . 1 1 . 1 . Propulsion 9 | . . 2 3 4 . Utility 8 | . . 1 4 3 . Weapon 5 | . . 3 1 1 . Highest Loss Streak 5 | . 1 5 4 5 . To Critical Strikes . | . . . . . . Average Backups 4 | 5 4 4 4 4 4 Power . | 1 1 1 1 . . Propulsion . | 4 2 2 . . . Utility 1 | . . . 1 2 3 Weapon 1 | . 1 1 . 1 1 Tool/Special . | . . . . . . Unused Backups 6 | 2 . . 2 1 1 Power 1 | . . . 1 . . Propulsion 2 | 2 . . . . . Utility 2 | . . . . 1 1 Weapon 1 | . . . 1 . . Tool/Special . | . . . . . . Average Slot Usage (%) 82 | . 98 74 73 76 93 Engine 6 | . 13 14 1 3 . Core 3 | . . . 7 4 9 Leg 10 | . . . 5 24 18 Wheel 12 | . 28 20 13 . . Flight 2 | . . . . 5 18 Device 19 | . 27 26 19 14 9 Hackware 3 | . . . 1 4 27 Protection 5 | . . . 11 6 . Energy Gun 11 | . 22 13 10 3 . Special Weapon 1 | . 5 . . . . Impact Weapon 3 | . . . . 9 9 Peak Build Rating 24 | 9 9 9 24 23 24 Average Rating 13 | 7 8 6 15 17 22 On Entrance 11 | 6 9 9 2 23 20 Avg Prop Armor Cover (%) 7 | 9 . . 7 7 7 Naked Turns . | . . . . . . Heaviest Build 18 | 13 10 10 18 18 13 Greatest Support 52 | 20 26 20 52 52 20 Greatest Overweight (x) 4 | 4 2 2 1 3 . Average Overweight (x) . | . . . . . . Largest Inventory Capacity 8 | 8 5 5 5 5 5 Average Capacity 5 | 6 5 5 5 5 5 Most Carried 8 | 8 5 5 5 5 5 Average Carried 4 | 5 4 4 4 4 5 Final Capacity 5 | 5 5 5 5 5 5 Final Carried 5 | 4 5 5 5 5 5 Class Distribution -------------------- 54% | Mutant 45% | Scavenger-Mutant Dominant Class ---------------- Mutant | -10/Materials Mutant | -10/Subcaves Scavenger-Mutant | -8/Materials Scavenger-Mutant | -8/Garrison Scavenger-Mutant | -8/Materials Resources | -11 -10 -10 -8 -8 -8 ----------- Run | Yrd Mat Sub Mat Gar Mat Matter Collected 644 | 260 34 16 184 100 50 Remotely . | . . . . . . Salvage Created 884 | 82 142 34 305 302 19 Parts 50 | 7 11 2 14 13 3 Haulers Intercepted . | . . . . . . Recyclers Shooed . | . . . . . . Parts Field Recycled . | . . . . . . Retrieved Matter . | . . . . . . Parts Self-Destructed . | . . . . . . Prevented . | . . . . . . Parts Restored . | . . . . . . Kills | -11 -10 -10 -8 -8 -8 ------- Run | Yrd Mat Sub Mat Gar Mat Combat Hostiles Destroyed 28 | . 5 1 10 12 . Melee 5 | . . . . 5 . Guns 17 | . 5 1 7 4 . AOE 2 | . . . 2 . . Classes Destroyed 10 | 2 3 1 3 . 1 Tunneler 1 | 1 . . . . . Recycler 1 | 1 . . . . . Operator 1 | . . . . . 1 Watcher 1 | . 1 . . . . Swarmer 12 | . 3 . 3 6 . Grunt 9 | . 2 . 4 3 . Duelist 1 | . . . 1 . . Sentry 1 | . . . 1 . . Hunter 4 | . . . 1 3 . Subdweller 1 | . . 1 . . . Best Kill Streak 4 | 2 3 1 3 4 1 Combat Bots Only 4 | . 3 1 3 4 . Max Kills in Single Turn 1 | 1 1 1 1 1 1 Gunslinging . | . . . . . . Exploded 1 | . . . 1 . . Melee 1 | . . . . 1 . Uniques/NPCs Destroyed . | . . . . . . Combat | -11 -10 -10 -8 -8 -8 -------- Run | Yrd Mat Sub Mat Gar Mat Hostile Shots Fired 287 | . 29 32 74 150 2 Missed 86 | . 6 13 26 41 . Hits 201 | . 23 19 48 109 2 Melee 2 | . . . 2 . . Projectile 199 | . 23 19 46 109 2 Critical Strikes 1 | . . . . 1 . Damage Taken 2546 | . 242 415 682 1174 33 Core 724 | . 54 117 206 329 18 Absorbed by Shields . | . . . . . . Redirected to Shielding 42 | . . . 27 15 . Regen/Repaired (Parts) 2 | . 2 . . . . Core Remaining (%) 65 | 100 . 31 . . . Volleys Fired 91 | 2 23 6 36 24 . Largest 2 | 2 2 2 2 1 . Hottest 124 | 90 100 90 124 63 . Shots Fired 113 | 4 36 9 40 24 . Gun 105 | 4 32 9 36 24 . Cannon . | . . . . . . Launcher 4 | . . . 4 . . Special 4 | . 4 . . . . Kinetic . | . . . . . . Thermal 107 | 2 36 9 36 24 . Explosive 4 | . . . 4 . . Electromagnetic 2 | 2 . . . . . Robot Hit Streak 10 | 3 8 8 10 8 . Robot Miss Streak 4 | . 2 1 4 4 . Penetration Max . | . . . . . . Secondary Targets . | . . . . . . Shots Hit Robots 104 | 3 24 8 38 30 1 Core Hits 74 | 3 9 4 48 9 1 Critical Kills . | . . . . . . Critical Parts Destroyed 5 | . . . . 5 . Critical Strikes 10 | . 3 . 2 5 . Burn 5 | . 3 . 2 . . Smash 5 | . . . . 5 . Melee Attacks 57 | . . . . 56 1 Impact 56 | . . . . 56 . Slashing 1 | . . . . . 1 Piercing . | . . . . . . Sneak Attacks . | . . . . . . Combat Hostiles . | . . . . . . Follow-up Attacks . | . . . . . . Damage Inflicted 1919 | 40 278 92 615 847 47 Guns 1178 | 40 278 92 513 255 . Cannons . | . . . . . . Explosions 102 | . . . 102 . . Melee 639 | . . . . 592 47 Ramming . | . . . . . . Kinetic . | . . . . . . Thermal 1151 | 13 278 92 513 255 . Explosive 102 | . . . 102 . . Electromagnetic 27 | 27 . . . . . Impact 592 | . . . . 592 . Slashing 47 | . . . . . 47 Piercing . | . . . . . . Highest Corruption . | . . . . . . Average Corruption . | . . . . . . Corruption Purged . | . . . . . . Corruption Blocked . | . . . . . . Overload Shots . | . . . . . . Overflow Damage 256 | . . . . 256 . Projectiles . | . . . . . . Explosions . | . . . . . . Melee 256 | . . . . 256 . Knockbacks 4 | . . . . 4 . Impact 4 | . . . . 4 . Kinetic . | . . . . . . Secondary . | . . . . . . Self-Inflicted Damage . | . . . . . . Shots . | . . . . . . Rammed . | . . . . . . Targets Rammed . | . . . . . . Kicked . | . . . . . . Crushed . | . . . . . . Highest Temperature 220 | 30 220 . 134 . . Average Temperature 59 | 18 75 . 49 . . Received Heat Transfer 399 | . 108 12 198 63 18 Effects 2 | . 2 . . . . Interference 2 | . 2 . . . . Siege Activations . | . . . . . . Martial Activations . | . . . . . . Shielding Activations . | . . . . . . Robots Disrupted . | . . . . . . Combat Hostiles . | . . . . . . Robots Corrupted 3 | . . . . 3 . Combat Hostiles 3 | . . . . 3 . Parts Fried 5 | . . . . 5 . Impact Corruptions 8 | . . . . 8 . Robots Melted 1 | . . . 1 . . Combat Hostiles 1 | . . . 1 . . Parts Melted 9 | . 5 2 1 1 . Heat Transferred 2648 | 37 930 224 902 555 . Parts Sabotaged . | . . . . . . Parts Stolen . | . . . . . . Parts Stripped . | . . . . . . Power Chain Reactions . | . . . . . . Alert | -11 -10 -10 -8 -8 -8 ------- Run | Yrd Mat Sub Mat Gar Mat Maximum Alert Level 1 | . . . . 1 . Low Security (%) 87 | 100 100 . 100 66 100 Level 1 12 | . . . . 33 . Level 2 . | . . . . . . Level 3 . | . . . . . . Level 4 . | . . . . . . Level 5 . | . . . . . . High Security . | . . . . . . Max Security . | . . . . . . Peak Influence 361 | 10 70 . 123 361 175 Initial 175 | . . . . 11 175 Average 78 | 2 14 . 56 144 160 Influence Increases 1005 | 10 206 . 344 440 5 Destroy 0b10 Robot/C 540 | . 100 . 200 240 . Destroy 0b10 Robot/NC 20 | 10 5 . . . 5 Destroy Leader 82 | . 22 . 40 20 . Successful Hack 65 | . 45 . 6 14 . Select Force Hacks 30 | . 30 . . . . Disable Machine 60 | . . . 15 45 . Anti-Garrison Action 50 | . . . . 50 . Destroy Structure 68 | . 4 . 23 41 . Lose Combat Pursuer 90 | . . . 60 30 . Influence Decreases 855 | 10 168 38 327 96 216 Entered New Map 211 | . . 19 . 6 186 Time Decay 466 | 10 151 19 256 . 30 Lost Part 171 | . 10 . 71 90 . Purge Threat 7 | . 7 . . . . Squads Dispatched 3 | . 1 . 1 . 1 Investigation 2 | . 1 . 1 . . Extermination . | . . . . . . Reinforcement 1 | . . . . . 1 Assault . | . . . . . . Garrison . | . . . . . . Intercept . | . . . . . . Searches Triggered . | . . . . . . Construction Impeded . | . . . . . . Haulers Reinforced . | . . . . . . Active Scanning Responses . | . . . . . . Cargo Convoy Interrupts . | . . . . . . Stealth | -11 -10 -10 -8 -8 -8 --------- Run | Yrd Mat Sub Mat Gar Mat Distress Signals 3 | . . . 3 . . Communications Jammed . | . . . . . . Distress Signals . | . . . . . . Times Spotted 47 | . 9 3 18 13 4 Peak Tracking Total 5 | . 3 2 5 4 3 Tactical Retreats 5 | . . . 3 2 . Traps | -11 -10 -10 -8 -8 -8 ------- Run | Yrd Mat Sub Mat Gar Mat Traps Triggered 1 | . . . 1 . . Indirectly . | . . . . . . Trap Hack Attempts . | . . . . . . Triggered . | . . . . . . Disarmed . | . . . . . . Reprogrammed . | . . . . . . Reused . | . . . . . . Traps Extracted . | . . . . . . Installed . | . . . . . . Triggered . | . . . . . . Most Traps Carried 1 | . . . . 1 1 Machines | -11 -10 -10 -8 -8 -8 ---------- Run | Yrd Mat Sub Mat Gar Mat Machines Disabled 5 | . . . 1 4 . Max in Single Turn 1 | . . . 1 1 . Garrison Relay 1 | . . . . 1 . Machines Repaired . | . . . . . . Machines Dismantled . | . . . . . . Machines Sabotaged . | . . . . . . Overloaded Fab Kills . | . . . . . . Hacking | -11 -10 -10 -8 -8 -8 --------- Run | Yrd Mat Sub Mat Gar Mat Machines Accessed 15 | . 9 . 4 1 1 Terminals 12 | . 7 . 3 1 1 Fabricators . | . . . . . . Repair Stations 1 | . 1 . . . . Recycling Units 1 | . 1 . . . . Scanalyzers . | . . . . . . Garrison Access 1 | . . . 1 . . Total Hacks 49 | . 30 . 16 1 2 Successful 34 | . 23 . 10 1 . Failed 15 | . 7 . 6 . 2 Catastrophic 3 | . 2 . 1 . . Database Lockouts . | . . . . . . Manual 29 | . 15 . 14 . . Terminals 45 | . 27 . 15 1 2 Fabricators . | . . . . . . Repair Stations 2 | . 2 . . . . Recycling Units 1 | . 1 . . . . Scanalyzers . | . . . . . . Garrison Access 1 | . . . 1 . . Terminal Hacks 9 | . 8 . . 1 . Record 2 | . 2 . . . . Prototype ID Bank 2 | . 2 . . . . Emergency Access Points 2 | . 2 . . . . Unreport Threat 2 | . 2 . . . . Garrison Registry 1 | . . . . 1 . Fabricator Hacks . | . . . . . . Repair Station Hacks 2 | . 2 . . . . Scan Component 1 | . 1 . . . . Repair 1 | . 1 . . . . Recycling Unit Hacks . | . . . . . . Scanalyzer . | . . . . . . Garrison Access Hacks 1 | . . . 1 . . Unlock Access 1 | . . . 1 . . Unauthorized Hacks 22 | . 13 . 9 . . Terminals 21 | . 12 . 9 . . Track 2 | . 1 . 1 . . Assimilate 2 | . 1 . 1 . . Botnet 8 | . 5 . 3 . . Operators 2 | . 1 . 1 . . Skim 7 | . 4 . 3 . . Fabricators . | . . . . . . Repair Stations . | . . . . . . Recycling Units 1 | . 1 . . . . Tunnel 1 | . 1 . . . . Scanalyzers . | . . . . . . Garrison Access . | . . . . . . Data Cores Recovered . | . . . . . . Used . | . . . . . . Hacking Detections 13 | . 8 . 4 . 1 Full Trace Events 1 | . 1 . . . . Feedback Events . | . . . . . . Feedback Blocked . | . . . . . . Robot Schematics Acquired . | . . . . . . Robots Built . | . . . . . . Authchips . | . . . . . . Time . | . . . . . . Total Robot Build Rating . | . . . . . . Part Schematics Acquired . | . . . . . . Parts Built . | . . . . . . Authchips . | . . . . . . Time . | . . . . . . Total Part Build Rating . | . . . . . . Part Studies Acquired . | . . . . . . Parts Repaired 1 | . 1 . . . . Time 38 | . 38 . . . . Parts Recycled . | . . . . . . Recycled Matter . | . . . . . . Retrieved Matter . | . . . . . . Retrieved Components . | . . . . . . Parts Scanalyzed . | . . . . . . Part Schematics Acquired . | . . . . . . Parts Damaged . | . . . . . . Bothacking | -11 -10 -10 -8 -8 -8 ------------ Run | Yrd Mat Sub Mat Gar Mat Used RIF Installer 1 | . . . . 1 . Robots Hacked . | . . . . . . Non-combat . | . . . . . . Combat . | . . . . . . Robot Hacks Applied . | . . . . . . Relay Couplers Released 3 | . . . . 3 . Machine Destruction 3 | . . . . 3 . Attached 3 | . . . . 3 . Fabnet Peak Effective % . | . . . . . . Robots Rewired . | . . . . . . Allies Hacked . | . . . . . . Hacks Repelled . | . . . . . . Allies | -11 -10 -10 -8 -8 -8 -------- Run | Yrd Mat Sub Mat Gar Mat Total Allies . | . . . . . . Largest Group . | . . . . . . Highest-Rated Group . | . . . . . . Highest-Rated Ally . | . . . . . . Total Orders . | . . . . . . Ally Attacks . | . . . . . . Total Damage . | . . . . . . Kills . | . . . . . . Allies Corrupted . | . . . . . . Allies Melted . | . . . . . . Intel | -11 -10 -10 -8 -8 -8 ------- Run | Yrd Mat Sub Mat Gar Mat Active Infowar (turns) 1091 | 38 631 138 208 . 76 Terrain 728 | 38 531 83 . . 76 Seismic 991 | 20 631 138 202 . . Machine Analysis 80 | . . . 80 . . Robot Analysis Total . | . . . . . . Derelict Logs Recovered . | . . . . . . Drone Launches . | . . . . . . Drone Recoveries . | . . . . . . Exploration | -11 -10 -10 -8 -8 -8 ------------- Run | Yrd Mat Sub Mat Gar Mat Turns Passed 2288 | 47 631 138 623 770 79 Spaces Moved 1431 | 30 419 132 367 431 52 Core 25 | 1 1 19 . 4 . Treads . | . . . . . . Legs 496 | 7 . . 13 424 52 Wheels 907 | 22 418 113 354 . . Hover . | . . . . . . Flight 3 | . . . . 3 . Fastest Speed 50 | 80 80 50 100 117 120 Average Speed 101 | 96 81 80 105 121 120 Slowest Speed 250 | 250 150 150 190 200 120 Overloaded Moves . | . . . . . . Propulsion Burnouts . | . . . . . . Robots Hopped . | . . . . . . Potential Cave-ins . | . . . . . . Cave-ins Triggered . | . . . . . . Exploration Rate (%) 32 | 3 76 12 37 61 8 Regions Visited 5 Branch Regions 1 Pre-discovered Areas 2 | . 1 1 . . . Known Exits Taken 1 | . . . 1 . . Unknown Exits Taken 3 | 1 1 1 . . . Scrap Searched . | . . . . . . Spaces Dug 25 | . 4 . . 21 . Terrain Destroyed 51 | . 4 . 26 21 . Melee 21 | . . . . 21 . Projectile 4 | . 4 . . . . AOE 26 | . . . 26 . . Terrain Rammed . | . . . . . . Walls Destroyed . | . . . . . . Machines Disabled . | . . . . . . Actions | -11 -10 -10 -8 -8 -8 --------- Run | Yrd Mat Sub Mat Gar Mat Total 2021 | 43 662 154 560 536 66 Wait 367 | . 210 14 120 13 10 Move 1427 | 29 418 131 367 430 52 Hop . | . . . . . . Pick Up 11 | . 2 1 6 2 . Fast Attach 32 | 6 2 1 15 7 1 Attach 8 | . . 1 6 1 . Detach 4 | 2 . . 2 . . Swap 8 | . 4 . 2 1 1 Drop 16 | 4 3 . 6 2 1 Fire 91 | 2 23 6 36 24 . Melee 57 | . . . . 56 1 Ram . | . . . . . . Kick . | . . . . . . Crush . | . . . . . . Escape Stasis . | . . . . . . Rewire . | . . . . . . Trap . | . . . . . . Miscellaneous . | . . . . . . Route ------- -11/Scrapyard -10/Materials (discovered 5 exits: [*Mat x2] / [*Min x2] / [*Sub]) -10/Subcaves -8/Materials -8/Garrison (discovered 3 exits: *Mat x3) -8/Materials History --------- Turn | Location | Event 1 | -11/Scrapyard | Discovered new exit (range 2) 48 | -11/Scrapyard | Entered Materials 76 | -10/Materials | Discovered new exit (range 16) 164 | -10/Materials | Discovered new exit (range 9) 306 | -10/Materials | Build established: Mutant 439 | -10/Materials | Repaired Imp. Terrain Scanner 493 | -10/Materials | Discovered new exit (range 13) 588 | -10/Materials | Discovered new exit (range 10) 674 | -10/Materials | Discovered new exit (range 6) 679 | -10/Materials | Entered Subcaves 711 | -10/Subcaves | Discovered new exit (range 10) 714 | -10/Subcaves | Learned location of Zion (-7) 714 | -10/Subcaves | Met a Zionite searching for "candidates" 785 | -10/Subcaves | Core integrity fell below 50% 793 | -10/Subcaves | Lost 5 parts (1n1u3w) 817 | -10/Subcaves | Entered Materials 817 | -8/Materials | Evolved 4 slots: Propulsion x2, Utility x2 1059 | -8/Materials | Lost 4 parts (2n2u) 1296 | -8/Materials | Build established: Scavenger-Mutant 1440 | -8/Materials | Identified exit to Garrison 1440 | -8/Materials | Entered Garrison 1706 | -8/Garrison | Core integrity fell below 50% 1787 | -8/Garrison | Lost 5 parts (1p1n2u1w) 1802 | -8/Garrison | Discovered new exit (range 73) 1802 | -8/Garrison | Discovered new exit (range 57) 1802 | -8/Garrison | Discovered new exit (range 23) 1912 | -8/Garrison | Triggered checkpoint 1934 | -8/Garrison | Core integrity fell below 20% 1945 | -8/Garrison | Lost 3 parts (2n1u) 2066 | -8/Garrison | Installed Relay Interface Framework 2079 | -8/Garrison | Garrison Relay disabled 2210 | -8/Garrison | Entered Materials 2289 | -8/Materials | Destroyed by G-47 Trooper with Particle Gun Last Messages --------------- 02165_ Acquired Proton Bomb Trap. 02185_ Dropped Imp. Terrain Scanner. 02198_ Acquired Authchip [R/Combat]. 02210_ Attempting to access garrison exit controls... RIF authorized. LOCATION=UNKNOWN GOAL=ESCAPE 02254_ Acquired Axe. 02267_ Acquired 50 matter. 02270_ Connecting with Terminal... 02270_ Current location identified: Materials 02278_ O-16 Technician: "IFF HANDSHAKE FAILED. SECURING TERMINAL." 02279_ O-16 Technician uses terminal to summon reinforcements. 02279_ ALERT: Hostiles spotted, dispatching reinforcements to Terminal M010. 02279_ O-16 Technician locks terminal. 02283_ O-16 Technician destroyed. 02287_ Dropped Great Maul. Map ----- +----------------------------------------------------+ | ??????????????????????????????????????????? | | ??????????????????????????????????????????? | | ??????????????????????????????????????????? | | ??????????????????????????????????????????? | | ??????????????????????????????????????????? | | ??????????????????????????????????????????? | | ??????????????????????????????????????????? | | ??????????????????????????????????????????? | | ??????????????????????????????????????????? | | ???????????????????????#???? ?????????????? | | ???????????????? ????????? ?????????????? | | ???????????????? ???????##/####+#???????? | | ???????????????? ?????### #???????? | | ???????????????? #????? #???????? | | ????????????????# #??????# """ ######### | | ????????????????# u#??????#[ """ # | | ????????????????#t ##+##### """ # | | ????????????????#g # """ | | ?????"??????????# + """ | | ????????????????+ ##+####### ##### """ | | ?????????????? ?#g # ? ?????# #???# """ | | ?????????????#### #????????# #???# | | ?????????????? #????????# #???# | | ??????????????? #????????# #???# | | ??????###########=/#?? ????## ############# | | ??????# #%@#????????# # #????? | | ??????# T +* ####+##### # #????? | | ??????# ! # + """ #????? | | ??????# # ### # """ #?#??? | | ??????# #####+##### # """ #???#? | | ?????## """" # "T" + + #????? | | ??????# """" # % ############????? | | ??????# """" # #???????????????? | | ??????#????######[ ! ! #???????????????? | | ????????????????###########?#????????#????? | | | | | | | | | | | | | | | | | | | | | | | | | | | | | | | +----------------------------------------------------+ Best States ------------- Heat Dissipation 41 Coolant Potential 50 Energy Generation 14 Energy Capacity 250 Matter Stores 300 Matter Capacity 300 Sight Range 16 Terrain Scan Range 16 Terrain Scan Density 10 Armor Coverage 150 Core Shielding 20 Evasion (%) 55 Defensive Hacking 10 Relay Coupler Types 3 Relay Coupler Value 74 Authchip Count 1 Item Schematics ----------------- None Robot Schematics ------------------ None Fabricated ------------ Nothing Repaired ---------- Imp. Terrain Scanner | 90% | -10/Materials Studied --------- None Alien Tech Used ----------------- None Achievements -------------- Hammer Time Challenges ------------ None Game ------ Seed XenonDeuteriumBuckler Manual? 0 Play Time 00:33:02 Cumulative 152.9 hours Start 2025.11.01 @ 02:09:41 End 2025.11.01 @ 02:58:30 Sessions 1 Manual Loads 0 Difficulty Rogue Special Mode None Game No. 158 Rogue 156 Adventurer 2 Explorer 0 Win Type - Total 0 Types 0/0/0/0/0/0/0/0/0/0 Lore% 64 Gallery% 56 Achievement% 30 Wizard Run 0 Options --------- Layout 2 ASCII 0 Keyboard 1 Movement Vi Keybinds 0 Fullscreen 0 Font 42/SmallcapsGlow Map View 59x48 Zoom Use 0% Tactical HUD 1 Map Filters NONE Filters NONE Steam 1 RUN: f2d5e052-60ba-4f91-9031-c97541f40fba